bitfinex-derivatives/quotes_SOLF0:USTF0_20241016
["timestamp","ask_amount","ask_price","bid_price","bid_amount"]
[1729065619518,9.01,153.68,153.57,10.6356]
[1729065619722,9.01,153.68,153.62,9.01]
[1729065620226,12.2637,153.68,153.64,3.2543]
[1729065620830,12.263,153.72,153.68,3.2536]
[1729065621031,9.01,153.72,153.66,9.01]
[1729065621425,12.2632,153.71,153.67,3.2537]
[1729065624629,12.2637,153.68,153.64,3.2545]
[1729065626436,3.2541,153.66,153.62,3.2549]
[1729065626639,9.01,153.66,153.61,9.01]
[1729065626935,3.2537,153.68,153.64,9.01]
[1729065627427,3.2537,153.68,153.64,12.2644]
[1729065628131,12.2641,153.66,153.62,3.2547]
[1729065628530,9.01,153.63,153.58,121.46776638]
[1729065628727,12.2648,153.63,153.59,3.2555]
[1729065630030,9.01,153.64,153.59,9.01]
[1729065630235,12.2645,153.64,153.6,3.2552]
[1729065630738,9.01,153.65,153.6,3.2552]
[1729065630934,12.2646,153.64,153.6,3.2552]
[1729065631836,19.48879582,153.7,153.63,9.01]
[1729065632040,35.00379582,153.76,153.66,9.01]
[1729065632244,9.01,153.71,153.66,9.01]
[1729065632541,3.2532,153.7,153.66,12.264]
[1729065632733,12.2632,153.7,153.66,3.254]
[1729065632935,2.8469,153.75,153.65,9.01]
[1729065633138,9.01,153.72,153.66,9.01]
[1729065634038,9.01,153.7,153.58,121.46776638]
[1729065634244,2.8469,153.75,153.64,9.01]
[1729065634245,9.01,153.69,153.64,9.01]
[1729065634544,3.2538,153.68,153.64,12.2645]
[1729065636551,9.01,153.7,153.66,3.254]
[1729065637454,12.2633,153.7,153.66,3.254]
[1729065637946,3.253,153.71,153.64,12.2643]
[1729065638152,9.01,153.69,153.64,12.2643]
[1729065638653,18.30069582,153.75,153.66,3.2539]
[1729065638847,9.01,153.72,153.66,3.2539]
[1729065639245,3.2532,153.71,153.66,3.2539]
[1729065640453,3.2532,153.71,153.66,12.2639]
[1729065641049,3.2532,153.7,153.66,12.2639]
[1729065642257,12.2629,153.72,153.68,3.2536]
[1729065642952,12.2629,153.72,153.66,9.01]
[1729065642953,9.01,153.72,153.66,9.01]
[1729065643759,12.2629,153.72,153.68,3.2536]
[1729065645255,3.2538,153.68,153.61,3.255]
[1729065645458,3.2538,153.68,153.63,9.01]
[1729065646257,3.2538,153.68,153.58,121.46776638]
[1729065646258,3.2538,153.68,153.64,12.2643]
[1729065651759,1.0,153.74,153.64,9.01]
[1729065651961,12.2632,153.71,153.67,12.2638]
[1729065652165,1.0,153.74,153.7,9.01]
[1729065652363,1.0,153.74,153.73,3.2526]
[1729065653462,1.0,153.74,153.72,12.2627]
[1729065654768,1.0,153.74,153.73,3.2526]
[1729065655766,1.0,153.74,153.7,14.06]
[1729065655970,1.0,153.74,153.72,3.2527]
[1729065657265,1.0,153.74,153.7,14.06]
[1729065658870,1.0,153.74,153.71,3.2528]
[1729065661075,1.0,153.74,153.72,3.2526]
[1729065666772,1.0,153.74,153.68,14.06]
[1729065667374,4.2524,153.74,153.7,3.2531]
[1729065668170,3.2526,153.73,153.7,3.2531]
[1729065670271,1.0,153.74,153.72,3.2528]
[1729065670468,1.0,153.74,153.7,14.06]
[1729065671581,1.0,153.74,153.71,3.2529]
[1729065672782,1.0,153.74,153.7,14.06]
[1729065673387,1.0,153.74,153.72,3.2528]
[1729065674687,1.0,153.74,153.7,14.06]
[1729065674881,1.0,153.79,153.72,14.06]
[1729065675182,1.0,153.79,153.75,14.06]
[1729065677083,1.0,153.79,153.76,3.2519]
[1729065677880,1.0,153.79,153.77,8.99]
[1729065681975,1.0,153.79,153.77,12.2417]
[1729065682484,1.0,153.79,153.77,8.99]
[1729065682690,1.0,153.79,153.78,12.2415]
[1729065684190,3.2507,153.82,153.78,12.2415]
[1729065684386,1.0,153.83,153.8,8.99]
[1729065684897,1.0,153.83,153.8,12.241]
[1729065688891,3.2507,153.82,153.78,3.2514]
[1729065689092,3.2507,153.82,153.79,8.99]
[1729065695196,1.0,153.83,153.81,8.99]
[1729065695899,1.0,153.83,153.82,8.99]
[1729065699497,1.0,153.83,153.81,12.2407]
[1729065701392,1.0,153.83,153.79,8.99]
[1729065701589,1.0,153.83,153.78,8.99]
[1729065701990,3.2507,153.82,153.78,12.2413]
[1729065702196,3.2507,153.82,153.78,8.99]
[1729065702591,4.24294358,153.83,153.79,12.2413]
[1729065702592,1.0,153.83,153.79,12.2413]
[1729065703695,1.0,153.83,153.81,8.99]
[1729065704298,1.0,153.83,153.81,12.2409]
[1729065705810,1.0,153.83,153.82,12.2407]
[1729065708801,1.0,153.83,153.82,8.99]
[1729065712407,1.0,153.83,153.82,12.2407]
[1729065713508,1.0,153.83,153.82,8.99]
[1729065715509,1.0,153.83,153.82,12.2407]
[1729065721016,1.0,153.83,153.82,3.2507]
[1729065721214,1.0,153.83,153.82,12.2407]
[1729065723211,1.0,153.83,153.75,121.33246459]
[1729065723516,1.0,153.83,153.8,12.241]
[1729065723908,4.2506,153.83,153.8,8.99]
[1729065725011,4.2506,153.83,153.8,12.241]
[1729065725917,1.0,153.83,153.82,8.99]
[1729065728017,1.0,153.83,153.82,12.2407]
[1729065731316,1.0,153.87,153.86,3.2498]
[1729065731515,15.36864462,153.94,153.86,8.99]
[1729065731717,2.7308,153.95,153.89,8.99]
[1729065731915,3.2485,153.93,153.89,12.239]
[1729065732118,3.22085387,153.94,153.89,8.99]
[1729065732416,8.99,153.93,153.87,8.99]
[1729065732617,3.249,153.9,153.87,8.99]
[1729065733421,3.2493,153.89,153.77,6.5032]
[1729065733719,3.2493,153.89,153.86,8.99]
[1729065735321,8.99,153.93,153.86,8.99]
[1729065735514,3.22085387,153.94,153.9,8.99]
[1729065735721,12.21085387,153.94,153.9,8.99]
[1729065735917,3.2485,153.93,153.9,8.99]
[1729065736120,2.7308,153.95,153.9,8.99]
[1729065736518,3.2483,153.94,153.9,8.99]
[1729065739021,3.2483,153.94,153.9,12.2389]
[1729065740524,3.2484,153.93,153.9,8.99]
[1729065740722,3.2484,153.93,153.89,12.2391]
[1729065744325,3.2489,153.91,153.89,8.99]
[1729065744525,8.99,153.93,153.89,8.99]
[1729065745033,4.2486,153.92,153.89,8.99]
[1729065746633,3.2488,153.91,153.87,12.2395]
[1729065746929,1.0,153.92,153.87,8.99]
[1729065747932,1.0,153.92,153.89,8.99]
[1729065748532,4.2486,153.92,153.89,8.99]
[1729065749143,1.0,153.92,153.9,8.99]
[1729065750440,1.0,153.92,153.9,12.2389]
[1729065759944,1.0,153.92,153.9,8.99]
[1729065761834,1.0,153.92,153.9,12.239]
[1729065764240,1.0,153.92,153.91,8.99]
[1729065766441,1.0,153.92,153.87,4.72]
[1729065766643,1.0,153.92,153.9,8.99]
[1729065767852,1.0,153.92,153.9,12.2389]
[1729065772249,1.0,153.92,153.91,12.2388]
[1729065773055,1.0,153.92,153.91,16.9188]
[1729065773756,1.0,153.96,153.94,3.248]
[1729065773962,1.0,153.96,153.91,13.67]
[1729065773963,1.0,153.96,153.95,8.99]
[1729065774158,1.0,153.96,153.94,8.99]
[1729065775359,1.0,153.96,153.92,1.4078]
[1729065775660,1.0,153.96,153.93,8.99]
[1729065776553,1.0,153.96,153.93,12.2382]
[1729065777363,1.0,153.96,153.94,3.2481]
[1729065780157,1.0,153.96,153.93,8.99]
[1729065780360,1.0,153.96,153.93,12.2383]
[1729065781764,9.99,153.96,153.92,8.99]
[1729065782069,1.0,153.96,153.93,8.99]
[1729065782367,1.0,153.96,153.93,12.2382]
[1729065782765,1.0,153.96,153.94,8.99]
[1729065782956,1.0,153.96,153.94,12.2381]
[1729065783362,1.0,153.96,153.94,3.2481]
[1729065783656,1.0,153.96,153.95,8.99]
[1729065783859,1.0,153.96,153.95,12.2379]
[1729065785378,1.0,154.0,153.95,8.99]
[1729065785565,1.0,154.0,153.99,8.99]
[1729065786471,1.0,154.0,153.99,12.2371]
[1729065791683,1.0,154.0,153.99,13.5625]
[1729065792267,4.2459,154.05,153.99,10.3154]
[1729065792577,4.2459,154.05,154.03,8.99]
[1729065793682,1.0,154.05,154.03,8.99]
[1729065793875,1.0,154.05,154.04,12.236]
[1729065794178,1.0,154.05,154.04,3.246]
[1729065794475,1.0,154.05,154.04,12.236]
[1729065794869,1.0,154.05,154.04,8.99]
[1729065795070,1.0,154.05,154.02,8.99]
[1729065795273,3.246,154.04,154.02,8.99]
[1729065795878,1.0,154.05,154.02,12.2364]
[1729065796284,1.0,154.05,154.0,4.68]
[1729065796471,1.0,154.05,154.02,8.99]
[1729065797483,4.2458,154.05,154.02,8.99]
[1729065800581,4.2458,154.05,154.02,12.2364]
[1729065800582,1.0,154.05,154.02,12.2364]
[1729065800873,1.0,154.05,154.02,8.99]
[1729065802586,1.0,154.05,154.03,12.2361]
[1729065803380,1.0,154.05,154.03,8.99]
[1729065803689,1.0,154.05,154.04,12.236]
[1729065804394,1.0,154.05,154.04,16.996]
[1729065806790,1.0,154.09,154.07,3.2452]
[1729065806990,1.0,154.09,154.07,12.2352]
[1729065808279,1.0,154.09,154.07,8.99]
[1729065808484,1.0,154.09,154.06,8.99]
[1729065808987,4.2451,154.09,154.06,8.99]
[1729065810183,1.0,154.09,154.04,8.99]
[1729065810391,8.99,154.06,153.99,1.3254]
[1729065810693,8.99,154.06,154.0,8.99]
[1729065810892,3.2462,154.04,154.0,8.99]
[1729065811277,8.99,154.06,154.0,8.99]
[1729065811489,3.2461,154.04,154.0,8.99]
[1729065812189,3.2464,154.03,154.0,8.99]
[1729065812401,8.99,154.03,153.97,4.76]
[1729065812694,8.99,154.03,153.97,8.99]
[1729065813193,3.2469,154.0,153.97,8.99]
[1729065813697,3.2467,154.01,153.97,12.2375]
[1729065816497,3.2471,153.99,153.94,3.248]
[1729065816691,8.99,153.99,153.94,8.99]
[1729065816898,8.99,153.99,153.93,4.76]
[1729065817197,3.2476,153.97,153.93,4.76]
[1729065817390,8.99,153.99,153.83,1.3174]
[1729065817694,3.2479,153.96,153.92,12.2384]
[1729065819997,3.2479,153.96,153.93,8.99]
[1729065820492,3.2477,153.97,153.93,12.2383]
[1729065821699,8.99,153.97,153.92,8.99]
[1729065821899,8.99,153.93,153.85,121.24832048]
[1729065822103,8.99,153.92,153.86,8.99]
[1729065822807,8.99,153.92,153.87,8.99]
[1729065824106,3.2491,153.9,153.87,8.99]
[1729065824698,3.2488,153.91,153.87,8.99]
[1729065824898,3.2488,153.91,153.87,12.2396]
[1729065826201,3.27183182,153.94,153.87,8.99]
[1729065826502,3.27183182,153.94,153.89,3.2492]
[1729065827297,6.52013182,153.94,153.89,3.2492]
[1729065827505,6.52013182,153.94,153.9,8.99]
[1729065831002,8.99,153.93,153.87,8.99]
[1729065831211,3.2486,153.92,153.88,3.2494]
[1729065832005,8.99,153.93,153.88,3.2494]
[1729065832210,12.2384,153.93,153.88,3.2494]
[1729065834206,12.2384,153.93,153.88,12.2394]
[1729065834914,12.2384,153.93,153.89,3.2491]
[1729065835908,8.99,153.93,153.88,8.99]
[1729065836120,8.99,153.93,153.9,3.2489]
[1729065836311,7.5345,153.95,153.91,8.99]
[1729065836717,10.7826,153.95,153.91,8.99]
[1729065836913,10.77369402,153.95,153.9,3.2488]
[1729065837214,3.2485,153.93,153.89,12.2392]
[1729065837908,3.2482,153.94,153.89,12.2392]
[1729065840915,3.2487,153.92,153.88,8.99]
[1729065841111,10.77369402,153.95,153.87,3.2495]
[1729065841112,8.99,153.91,153.87,3.2495]
[1729065841305,8.99,153.91,153.86,8.99]
[1729065841507,13.83,153.91,153.86,8.99]
[1729065841709,8.99,153.89,153.84,11.7954]
[1729065842007,8.99,153.87,153.83,3.2503]
[1729065842208,8.99,153.87,153.81,13.83]
[1729065843019,8.99,153.87,153.81,4.84]
[1729065843317,8.99,153.85,153.81,8.99]
[1729065843626,8.99,153.84,153.78,122.71930138]
[1729065843815,8.99,153.83,153.78,121.31690138]
[1729065844011,2.7005,153.86,153.77,1.0]
[1729065844012,8.99,153.8,153.77,1.0]
[1729065844511,8.99,153.78,153.77,1.0]
[1729065844710,12.268262,153.78,153.73,1.0]
[1729065844922,8.99,153.74,153.73,1.0]
[1729065845916,3.2521,153.76,153.73,1.0]
[1729065847025,4.84,153.77,153.73,1.0]
[1729065848413,17.3213,153.79,153.73,1.0]
[1729065848619,4.84,153.78,153.73,4.2525]
[1729065849316,4.84,153.78,153.73,1.0]
[1729065849518,3.27791514,153.77,153.73,1.0]
[1729065849821,14.07,153.75,153.73,1.0]
[1729065850220,3.2524,153.74,153.73,1.0]
[1729065850524,3.2524,153.74,153.69,1.0]
[1729065850525,4.84,153.74,153.69,1.0]
[1729065850731,3.2529,153.72,153.69,1.0]
[1729065851321,3.2527,153.73,153.69,1.0]
[1729065852727,14.07,153.73,153.69,1.0]
[1729065853226,3.253,153.71,153.69,1.0]
[1729065854621,4.84,153.71,153.69,1.0]
[1729065856333,4.9,153.71,153.69,1.0]
[1729065857817,8.153,153.71,153.69,1.0]
[1729065858131,4.9,153.71,153.69,1.0]
[1729065858430,18.97,153.71,153.69,1.0]
[1729065858636,3.2532,153.7,153.69,1.0]
[1729065859028,18.97,153.71,153.69,1.0]
[1729065859226,3.2532,153.7,153.69,1.0]
[1729065859627,6.4619952,153.7,153.69,1.0]
[1729065860828,3.2087952,153.7,153.64,1.0]
[1729065861032,14.07,153.67,153.64,1.0]
[1729065861229,4.9,153.67,153.64,1.0]
[1729065861933,4.9,153.67,153.64,4.2545]
[1729065863135,4.9,153.69,153.66,3.254]
[1729065863335,4.9,153.69,153.64,1.0]
[1729065863834,4.9,153.69,153.66,3.254]
[1729065864139,4.9,153.69,153.64,1.0]
[1729065864530,4.9,153.69,153.64,4.2543]
[1729065864531,11.42096661,153.69,153.64,4.2543]
[1729065864830,22.23736661,153.69,153.64,4.2543]
[1729065865135,17.3239,153.67,153.64,1.0]
[1729065865331,14.07,153.67,153.64,1.0]
[1729065865537,14.07,153.65,153.64,1.0]
[1729065865836,22.2243,153.65,153.64,1.0]
[1729065866930,4.9,153.65,153.64,1.0]
[1729065868230,4.9,153.69,153.64,1.0]
[1729065869032,8.1536,153.69,153.64,4.2543]
[1729065870643,4.9,153.69,153.66,3.254]
[1729065871932,14.07,153.72,153.64,5.2267]
[1729065872151,4.9,153.71,153.67,3.2537]
[1729065872642,8.153,153.71,153.67,3.2537]
[1729065877646,4.9,153.71,153.67,3.2537]
[1729065877843,15.3976,153.76,153.65,18.97]
[1729065878145,3.2525,153.74,153.65,18.97]
[1729065878337,3.2525,153.74,153.69,3.2533]
[1729065879541,4.9,153.75,153.71,3.2528]
[1729065879938,4.9,153.76,153.71,3.2528]
[1729065880243,3.252,153.76,153.71,3.2528]
[1729065880537,8.152,153.76,153.71,3.2528]
[1729065880738,18.97,153.76,153.67,14.07]
[1729065880934,3.2524,153.74,153.67,14.07]
[1729065881132,18.97,153.76,153.67,14.07]
[1729065881346,17.3221,153.76,153.71,3.2528]
[1729065881542,4.9,153.77,153.69,14.07]
[1729065881736,4.9,153.77,153.67,14.07]
[1729065881737,14.07,153.76,153.67,14.07]
[1729065881939,17.30192334,153.76,153.65,18.97]
[1729065882148,14.07,153.74,153.65,18.97]
[1729065882534,3.2529,153.72,153.67,3.2537]
[1729065883147,4.9,153.73,153.7,3.253]
[1729065883340,4.9,153.73,153.65,18.97]
[1729065883738,4.9,153.75,153.67,14.07]
[1729065884041,4.9,153.76,153.67,14.07]
[1729065884245,19.97572484,153.79,153.7,14.07]
[1729065884446,4.9,153.78,153.7,18.97]
[1729065884648,4.9,153.78,153.71,1.4142]
[1729065884945,4.9,153.78,153.71,2.7788]
[1729065885144,8.1517,153.78,153.73,3.2524]
[1729065885340,4.9,153.78,153.71,2.7788]
[1729065885536,3.2521,153.76,153.71,7.3511]
[1729065885750,4.9,153.78,153.71,4.0983]
[1729065887034,8.1516,153.78,153.73,3.2524]
[1729065888549,3.2516,153.78,153.73,3.2524]
[1729065888741,8.2116,153.78,153.73,3.2524]
[1729065890850,3.2517,153.77,153.73,3.2524]
[1729065892747,3.2523,153.75,153.71,1.4142]
[1729065893050,19.03,153.78,153.7,4.9]
[1729065893246,19.03,153.78,153.71,3.2528]
[1729065893450,3.252,153.76,153.71,3.2528]
[1729065893955,3.252,153.76,153.72,3.2528]
[1729065894640,14.07,153.76,153.68,3.2536]
[1729065895043,14.07,153.76,153.66,4.96]
[1729065895446,3.2526,153.74,153.69,3.2534]
[1729065895640,4.96,153.74,153.69,3.2534]
[1729065897656,3.2526,153.73,153.69,3.2534]
[1729065899255,4.96,153.74,153.71,3.2529]
[1729065901455,3.22413793,153.79,153.69,14.07]
[1729065901654,8.2116,153.78,153.73,3.2524]
[1729065902759,3.2518,153.77,153.73,3.2524]
[1729065903454,3.2509,153.81,153.74,14.07]
[1729065903855,4.96,153.83,153.74,14.07]
[1729065904154,4.96,153.82,153.76,14.07]
[1729065905049,1.3354,153.84,153.76,14.07]
[1729065905250,4.96,153.83,153.76,14.07]
[1729065905758,4.96,153.85,153.78,14.07]
[1729065906258,4.96,153.85,153.8,3.2511]
[1729065906753,4.96,153.85,153.78,14.07]
[1729065906958,4.96,153.85,153.77,4.96]
[1729065907156,14.07,153.84,153.77,4.96]
[1729065907348,14.07,153.84,153.78,3.2515]
[1729065907349,3.2505,153.83,153.78,3.2515]
[1729065909352,14.07,153.84,153.74,18.1864]
[1729065909664,14.07,153.84,153.76,3.2518]
[1729065909964,3.251,153.81,153.76,3.2518]
[1729065910159,8.211,153.81,153.76,3.2518]
[1729065912658,8.211,153.81,153.74,4.6618]
[1729065912659,3.2515,153.79,153.74,4.6618]
[1729065912858,14.07,153.78,153.65,2.7043]
[1729065913064,14.07,153.78,153.67,14.07]
[1729065913364,4.96,153.77,153.7,3.2531]
[1729065913864,3.2522,153.75,153.7,3.2531]
[1729065914164,4.96,153.77,153.72,3.2526]
[1729065915055,8.2119,153.77,153.72,3.2526]
[1729065918565,3.2522,153.75,153.71,3.2528]
[1729065918772,3.2522,153.75,153.7,4.96]
[1729065919070,3.2522,153.75,153.65,4.0304]
[1729065919071,14.07,153.75,153.66,4.92]
[1729065919257,3.2531,153.71,153.67,3.2538]
[1729065920161,18.99,153.73,153.66,4.92]
[1729065920364,3.2528,153.72,153.68,3.2536]
[1729065921064,3.2531,153.71,153.67,3.2538]
[1729065921268,3.2531,153.71,153.66,4.92]
[1729065921570,18.99,153.73,153.66,4.92]
[1729065921755,3.253,153.71,153.66,8.174]
[1729065921956,18.99,153.73,153.65,1.3261]
[1729065922154,18.99,153.73,153.64,1.0]
[1729065922155,14.07,153.71,153.64,1.0]
[1729065922462,3.2536,153.69,153.64,4.2544]
[1729065923767,14.07,153.71,153.64,1.0]
[1729065924068,3.2531,153.71,153.64,1.0]
[1729065924459,3.2528,153.72,153.68,3.2536]
[1729065924667,15.4309,153.78,153.67,14.07]
[1729065924868,4.92,153.77,153.67,14.07]
[1729065925171,4.92,153.77,153.72,3.2527]
[1729065925463,6.2809,153.78,153.71,14.07]
[1729065925664,9.5324,153.78,153.71,14.07]
[1729065925966,2.8353,153.8,153.71,14.07]
[1729065926269,4.92,153.79,153.71,14.07]
[1729065926471,8.1714,153.79,153.74,3.2522]
[1729065928372,8.1714,153.79,153.71,15.4851]
[1729065928373,3.2517,153.77,153.73,3.2525]
[1729065930876,3.2516,153.78,153.73,3.2525]
[1729065932069,4.92,153.79,153.64,1.0]
[1729065932070,14.07,153.74,153.64,1.0]
[1729065932269,14.07,153.72,153.64,1.0]
[1729065932473,14.07,153.69,153.64,1.0]
[1729065932770,18.99,153.71,153.64,1.0]
[1729065933377,3.2533,153.7,153.64,4.2544]
[1729065934470,18.99,153.71,153.64,1.0]
[1729065934871,14.07,153.69,153.64,1.0]
[1729065935072,3.30872381,153.68,153.64,1.0]
[1729065935266,3.2543,153.65,153.64,1.0]
[1729065935775,3.29308365,153.66,153.64,1.0]
[1729065935776,3.2541,153.66,153.64,1.0]
[1729065936380,3.2543,153.65,153.64,1.0]
[1729065939086,4.92,153.67,153.64,1.0]
[1729065939292,4.92,153.69,153.64,1.0]
[1729065939787,3.2536,153.68,153.64,1.0]
[1729065939986,22.24791118,153.69,153.64,1.0]
[1729065940188,14.07,153.67,153.64,1.0]
[1729065940583,3.2543,153.65,153.64,1.0]
[1729065940983,14.07,153.67,153.64,1.0]
[1729065941185,3.254,153.67,153.64,1.0]
[1729065941594,3.2543,153.65,153.64,1.0]
[1729065942498,22.24791118,153.69,153.64,1.0]
[1729065943385,22.24791118,153.69,153.6,1.0]
[1729065943386,33.59,153.65,153.6,1.0]
[1729065943700,33.59,153.65,153.46,4.88365347]
[1729065943701,14.07,153.61,153.48,14.07]
[1729065943887,4.92,153.6,153.48,14.07]
[1729065944093,3.256,153.57,153.5,3.2572]
[1729065944899,3.256,153.57,153.48,14.07]
[1729065945198,3.2558,153.58,153.52,3.257]
[1729065945394,17.3258,153.58,153.52,3.257]
[1729065945599,14.07,153.58,153.48,14.07]
[1729065945800,3.2562,153.56,153.5,3.2573]
[1729065946603,17.3259,153.58,153.52,3.257]
[1729065947701,17.3259,153.58,153.48,14.07]
[1729065947909,3.2564,153.55,153.5,3.2574]
[1729065948096,3.2564,153.55,153.48,18.99]
[1729065948292,18.99,153.56,153.47,3.6589]
[1729065948499,3.2568,153.53,153.47,3.6589]
[1729065948697,14.07,153.54,153.47,3.6589]
[1729065948893,14.07,153.54,153.47,6.9169]
[1729065948894,3.257,153.53,153.47,6.9169]
[1729065949500,17.3266,153.54,153.48,3.2577]
[1729065949903,14.07,153.54,153.48,3.2577]
[1729065950304,14.07,153.54,153.49,3.2576]
[1729065950706,3.2565,153.55,153.47,3.6589]
[1729065951009,14.07,153.56,153.47,3.6589]
[1729065951210,5.22,153.55,153.47,3.6589]
[1729065951400,5.22,153.55,153.51,4.2572]
[1729065951604,5.22,153.55,153.51,1.0]
[1729065951805,5.22,153.57,153.51,1.0]
[1729065952514,5.22,153.57,153.52,3.257]
[1729065953615,5.22,153.57,153.53,3.2568]
[1729065958915,3.2558,153.58,153.53,3.2568]
[1729065959218,8.4758,153.58,153.53,3.2568]
[1729065960317,5.22,153.58,153.53,3.2568]
[1729065960518,18.6784,153.6,153.51,1.0]
[1729065960719,5.22,153.59,153.51,1.0]
[1729065960907,18.6784,153.6,153.55,3.2562]
[1729065961112,5.22,153.59,153.55,3.2562]
[1729065963523,8.4755,153.59,153.55,3.2562]
[1729065963724,5.22,153.59,153.53,3.2567]
[1729065964324,3.2558,153.58,153.51,1.0]
[1729065964527,5.22,153.59,153.51,1.0]
[1729065964821,3.2561,153.57,153.52,3.2569]
[1729065965918,3.2564,153.55,153.51,1.0]
[1729065967123,3.2567,153.54,153.51,1.0]
[1729065967823,15.4477,153.58,153.51,1.0]
[1729065968023,15.4229,153.6,153.51,1.0]
[1729065968230,1.3529,153.6,153.52,14.07]
[1729065968522,1.3529,153.6,153.55,3.2562]
[1729065968523,9.8284,153.6,153.55,3.2562]
[1729065970030,4.6084,153.6,153.55,3.2562]
[1729065970333,9.8284,153.6,153.55,3.2562]
[1729065973434,3.2556,153.59,153.54,3.2565]
[1729065975225,3.2556,153.59,153.51,6.22]
[1729065975420,20.6429,153.6,153.55,3.2564]
[1729065975421,23.8984,153.6,153.55,3.2564]
[1729065975931,3.2555,153.59,153.55,3.2564]
[1729065977634,20.6429,153.6,153.51,6.22]
[1729065977834,14.07,153.58,153.51,6.22]
[1729065978028,14.07,153.58,153.51,1.0]
[1729065978536,3.2563,153.56,153.51,4.2571]
[1729065978831,5.1,153.56,153.51,1.0]
[1729065979135,14.07,153.54,153.51,1.0]
[1729065979437,14.07,153.52,153.47,1.0]
[1729065979640,5.1,153.51,153.47,1.0]
[1729065979838,11.5435227,153.51,153.47,1.0]
[1729065980236,8.2862227,153.51,153.47,1.0]
[1729065980537,3.2576,153.5,153.47,1.0]
[1729065981637,5.1,153.51,153.47,1.0]
[1729065982036,4.65655639,153.53,153.47,1.0]
[1729065982237,5.12,153.51,153.47,1.0]
[1729065983636,5.12,153.51,153.48,3.2578]
[1729065985740,4.6439,153.53,153.48,3.2578]
[1729065986040,5.12,153.52,153.48,3.2578]
[1729065988943,5.02,153.52,153.48,3.2578]
[1729065989238,8.277,153.52,153.47,4.258]
[1729065990543,5.02,153.52,153.47,1.0]
[1729065990946,3.2578,153.49,153.47,1.0]
[1729065991247,14.07,153.5,153.47,1.0]
[1729065991449,14.07,153.52,153.47,1.0]
[1729065991741,5.12,153.5,153.47,1.0]
[1729065992344,3.2577,153.49,153.47,1.0]
[1729065992645,5.12,153.5,153.47,1.0]
[1729065993042,3.2578,153.49,153.47,1.0]
[1729065993343,5.12,153.5,153.47,1.0]
[1729065993750,14.07,153.49,153.47,1.0]
[1729065994244,3.2579,153.48,153.47,1.0]